bitfinex-derivatives/quotes_ETHF0:USTF0_20250926
["timestamp","ask_amount","ask_price","bid_price","bid_amount"]
[1758853753924,0.7539,3945.4,3945.3,0.4752]
[1758853754612,1.20985,3945.4,3945.3,0.4752]
[1758853755420,0.7539,3945.4,3945.3,0.6996]
[1758853757020,0.7539,3945.4,3945.3,2.59894728]
[1758853757222,0.7539,3945.4,3945.3,0.6996]
[1758853758022,0.7539,3945.4,3945.3,1.0267]
[1758853758222,0.1526,3946.0,3945.8,0.45589]
[1758853758521,0.0253,3946.0,3945.9,2.59894728]
[1758853761317,0.5637,3946.0,3945.9,2.59894728]
[1758853761722,0.5637,3946.0,3945.9,1.0267]
[1758853761919,0.0253,3946.0,3945.9,1.0267]
[1758853763717,0.5637,3946.0,3945.9,1.0267]
[1758853764118,0.7013,3946.0,3945.9,1.0267]
[1758853764422,0.676,3946.0,3945.9,1.0267]
[1758853764623,1.90347776,3946.0,3945.9,0.26]
[1758853765124,1.90347776,3946.0,3945.9,0.4752]
[1758853766024,0.55609776,3946.0,3945.9,2.59894728]
[1758853766224,0.5384,3946.3,3946.2,0.7667]
[1758853766428,1.09462291,3946.3,3946.2,1.0267]
[1758853767018,1.31012291,3946.3,3946.2,0.4752]
[1758853767824,1.31012291,3946.3,3946.2,0.26]
[1758853768617,0.1376,3946.0,3945.0,0.0611]
[1758853768929,0.5384,3945.8,3945.7,0.4396]
[1758853769124,1.31012291,3945.8,3945.7,0.6996]
[1758853769428,1.31012291,3945.8,3945.7,1.0267]
[1758853769622,1.31012291,3945.8,3945.7,0.6996]
[1758853770023,1.31012291,3945.8,3945.7,0.26]
[1758853771228,1.3105821,3945.8,3945.7,0.26]
[1758853772629,1.3105821,3945.8,3945.7,2.60284728]
[1758853772630,0.5566821,3945.8,3945.7,2.60284728]
[1758853773133,0.8754821,3945.8,3945.7,2.60284728]
[1758853773324,1.0899821,3945.8,3945.7,2.60284728]
[1758853774533,0.3188,3946.7,3946.2,0.3304]
[1758853774718,0.3441,3946.8,3946.7,0.7706]
[1758853774924,0.58196278,3946.8,3946.7,1.0306]
[1758853775120,0.58196278,3946.8,3946.7,41.8306]
[1758853775323,0.90076278,3946.8,3946.7,41.8306]
[1758853775629,1.34016278,3946.8,3946.7,0.7002]
[1758853775936,1.11526278,3946.8,3946.7,1.0306]
[1758853776418,0.5586,3946.8,3946.7,1.0306]
[1758853776620,1.11475262,3946.8,3946.7,1.0306]
[1758853777318,0.5586,3946.8,3946.7,1.0306]
[1758853778028,0.7835,3946.8,3946.7,0.26]
[1758853778529,0.8969,3946.5,3946.4,0.2223]
[1758853778728,0.8969,3946.5,3946.4,0.4823]
[1758853779631,0.8969,3946.5,3946.4,0.7002]
[1758853779831,0.3188,3946.7,3946.4,0.7002]
[1758853780130,0.3188,3946.7,3946.6,2.34284728]
[1758853780321,0.3188,3946.7,3946.6,2.79864728]
[1758853780516,0.5333,3946.7,3946.6,2.79864728]
[1758853780726,0.7582,3946.7,3946.6,2.01244728]
[1758853782933,0.5781,3946.5,3946.4,0.4823]
[1758853783125,0.8969,3946.5,3946.4,0.4823]
[1758853783531,0.8969,3946.5,3946.4,1.0306]
[1758853783731,0.5333,3946.5,3946.4,1.0306]
[1758853784032,0.3188,3946.5,3946.4,1.0306]
[1758853784334,0.5333,3946.7,3946.6,0.7706]
[1758853784629,0.5333,3946.7,3946.6,2.79864728]
[1758853787833,0.5333,3946.7,3946.6,3.05864728]
[1758853791844,0.7582,3946.7,3946.6,3.05864728]
[1758853792038,0.7582,3946.7,3946.6,2.27244728]
[1758853793939,0.5333,3946.7,3946.6,2.60284728]
[1758853795052,0.7582,3946.7,3946.6,2.60284728]
[1758853800545,0.5333,3946.7,3946.6,2.34284728]
[1758853800746,0.7511,3946.7,3945.9,0.3263]
[1758853801050,0.9041,3946.0,3945.9,0.4579]
[1758853801248,0.9041,3946.0,3945.6,40.8]
[1758853801543,0.9041,3946.0,3945.0,0.0608]
[1758853801544,0.9041,3945.5,3945.0,0.78228]
[1758853801752,0.4323,3945.2,3945.1,0.4879]
[1758853801942,0.7779,3945.2,3945.1,41.2879]
[1758853802643,0.7779,3945.2,3945.1,42.86014728]
[1758853802845,0.7779,3945.2,3945.1,43.18644728]
[1758853803052,0.5676,3945.2,3945.1,43.18644728]
[1758853803263,0.3456,3945.2,3945.1,43.18644728]
[1758853803638,0.3482,3945.5,3945.4,0.4579]
[1758853803845,0.6938,3945.5,3945.4,0.7179]
[1758853804144,1.46114378,3945.5,3945.4,0.7179]
[1758853804346,1.25084378,3945.5,3945.4,2.61114728]
[1758853804644,1.25084378,3945.5,3945.4,2.37454149]
[1758853804841,0.2224,3945.9,3945.8,0.4358]
[1758853805042,0.5445,3945.9,3945.8,2.35244149]
[1758853805248,0.5445,3945.9,3945.8,2.80834149]
[1758853805249,1.10137809,3945.9,3945.8,2.80834149]
[1758853805445,1.10137809,3945.9,3945.8,2.35244149]
[1758853805446,1.31667809,3945.9,3945.8,2.35244149]
[1758853805646,1.31667809,3945.9,3945.8,0.6958]
[1758853805846,1.31667809,3945.9,3945.8,2.03144149]
[1758853806046,1.31667809,3945.9,3945.8,0.26]
[1758853806751,0.87897809,3945.9,3945.8,2.35244149]
[1758853806950,0.55687809,3945.9,3945.8,2.35244149]
[1758853807154,1.10137809,3945.9,3945.8,2.35244149]
[1758853807351,0.5445,3945.9,3945.8,2.35244149]
[1758853808655,0.7085,3947.0,3946.9,0.4358]
[1758853808956,0.58168778,3947.0,3946.9,1.0168]
[1758853809753,0.0253,3947.0,3946.9,1.0168]
[1758853810751,0.0253,3947.0,3946.9,2.35244149]
[1758853811343,0.0253,3947.0,3946.9,43.15244149]
[1758853812559,0.4788,3947.0,3946.9,41.2358]
[1758853812760,0.4788,3947.0,3946.9,41.06]
[1758853814558,0.4788,3947.0,3946.9,40.8]
[1758853814763,0.5691,3946.5,3946.4,1.77144149]
[1758853814983,0.8912,3946.5,3946.4,2.03144149]
[1758853815361,0.8912,3946.5,3946.4,43.28726149]
[1758853815561,0.6759,3946.5,3946.4,43.60826149]
[1758853818170,0.6759,3946.5,3946.4,41.4958]
[1758853818658,0.8912,3946.5,3946.4,0.4684]
[1758853818860,0.2224,3945.8,3945.5,1.65664149]
[1758853819070,0.7598,3945.8,3945.7,0.4358]
[1758853819359,0.7598,3945.8,3945.7,0.7568]
[1758853820163,0.7598,3945.8,3945.7,0.4358]
[1758853820757,1.21571,3945.8,3945.6,0.26]
[1758853820958,0.5622788,3945.7,3945.6,0.26]
[1758853821258,1.3220788,3945.7,3945.6,0.26]
[1758853822356,0.0253,3945.9,3945.6,0.26]
[1758853822357,0.3474,3945.9,3945.7,0.321]
[1758853822664,0.3474,3945.9,3945.8,1.0158]
[1758853823063,0.7851,3945.9,3945.8,0.4358]
[1758853823267,0.5445,3945.2,3945.1,41.57698]
[1758853823467,0.5445,3945.2,3945.1,41.83598]
[1758853824563,0.7598,3945.2,3945.1,0.6948]
[1758853824862,0.7598,3945.2,3945.1,1.0158]
[1758853826176,0.7598,3945.2,3945.1,0.6948]
[1758853826562,0.7598,3945.2,3945.1,0.4358]
[1758853826858,0.7598,3945.2,3945.1,0.259]
[1758853827058,1.3212395,3945.2,3945.1,0.259]
[1758853827268,0.7598,3945.2,3945.1,0.4674]
[1758853827466,0.7598,3945.2,3945.1,0.6948]
[1758853827866,0.7598,3945.2,3945.1,1.0158]
[1758853828170,0.0253,3945.9,3945.8,0.4358]
[1758853828473,0.90874966,3945.9,3945.8,1.0158]
[1758853828769,0.3474,3945.9,3945.8,1.0158]
[1758853828971,0.0253,3945.9,3945.8,1.0158]
[1758853831270,0.3659,3945.9,3945.8,1.0158]
[1758853831471,0.0253,3945.9,3945.8,41.8158]
[1758853834478,0.3406,3947.4,3946.9,0.45577]
[1758853834664,0.7586,3947.4,3947.3,0.2239]
[1758853834864,0.45576,3947.1,3946.5,0.3328]
[1758853835068,0.2084,3946.1,3945.8,40.8]
[1758853835273,0.2084,3946.1,3946.0,0.4369]
[1758853835274,0.418,3946.1,3946.0,0.4369]
[1758853835676,0.7586,3946.1,3946.0,0.4369]
[1758853835873,0.7586,3946.1,3946.0,0.7697]
[1758853836665,0.7586,3946.1,3946.0,1.0287]
[1758853837178,0.549,3946.1,3946.0,1.0287]
[1758853840591,0.549,3946.1,3946.0,0.7697]
[1758853840884,0.549,3946.1,3946.0,1.0287]
[1758853841079,0.549,3946.1,3946.0,0.4369]
[1758853841080,0.7586,3946.1,3946.0,0.4369]
[1758853841283,0.7586,3946.1,3946.0,0.4829]
[1758853841480,0.7586,3946.1,3946.0,0.259]
[1758853841878,0.2084,3945.9,3945.8,40.8]
[1758853842185,0.2084,3945.9,3945.4,5.07849141]
[1758853842186,0.7586,3945.9,3945.4,0.3328]
[1758853842381,0.8918,3945.5,3945.4,0.4369]
[1758853842677,0.8918,3945.5,3945.4,42.83152829]
[1758853844281,0.8918,3945.5,3945.4,42.35952829]
[1758853844485,0.8918,3945.5,3945.4,42.61852829]
[1758853844880,0.8918,3945.5,3945.4,1.81852829]
[1758853845076,0.418,3945.2,3945.1,1.55952829]
[1758853845283,0.7586,3945.2,3945.1,1.81852829]
[1758853845484,0.7586,3945.2,3945.1,42.61852829]
[1758853845783,1.32086588,3945.2,3945.1,42.61852829]
[1758853846377,1.32086588,3945.2,3945.1,40.8]
[1758853846583,0.549,3944.7,3944.6,2.10532829]
[1758853846790,0.549,3944.7,3944.6,2.36432829]
[1758853846990,0.549,3944.7,3944.6,43.16432829]
[1758853847286,0.549,3944.7,3944.6,42.57252829]
[1758853847492,0.3428,3944.5,3944.4,1.58562829]
[1758853847691,0.8918,3944.5,3944.4,1.84462829]
[1758853848095,1.91006931,3944.5,3944.4,0.509]
[1758853848286,6.91006931,3944.5,3944.4,0.25]
[1758853848680,6.91006931,3944.5,3944.4,0.19938142]
[1758853848894,0.7586,3943.6,3943.5,2.22868829]
[1758853849194,0.549,3943.9,3943.8,0.89302]
[1758853849395,0.549,3943.9,3943.8,2.82044829]
[1758853849695,0.7586,3943.9,3943.8,0.6959]
[1758853850193,0.7586,3943.9,3943.8,1.0287]
[1758853851090,0.1332,3944.5,3943.8,1.0287]
[1758853851294,0.1332,3944.5,3943.8,0.6959]
[1758853851295,0.7586,3943.9,3943.8,0.6959]
[1758853851494,0.7586,3943.9,3943.8,0.259]
[1758853851692,0.1332,3943.5,3943.4,40.8]
[1758853851996,0.4738,3943.5,3943.4,41.059]
[1758853852193,0.8918,3943.5,3943.4,0.4369]
[1758853852397,0.8918,3943.5,3943.4,0.6959]
[1758853852589,0.3416,3943.0,3942.9,0.46226236]
[1758853852790,0.549,3943.0,3942.9,41.85406236]
[1758853853095,0.3406,3943.0,3942.9,41.85406236]
[1758853853393,0.5512,3943.5,3943.4,0.2239]
[1758853853599,0.5512,3943.5,3943.4,0.4829]
[1758853853600,1.00737,3943.5,3943.4,0.4829]
[1758853853801,1.34797,3943.5,3943.4,0.4829]
[1758853854099,0.8918,3943.5,3943.4,0.4829]
[1758853855097,0.8918,3943.5,3943.4,0.259]
[1758853855799,0.8918,3943.5,3943.4,0.4829]
[1758853858905,0.8918,3943.5,3943.4,0.93908]
[1758853859801,0.8918,3943.5,3943.4,0.4829]
[1758853860300,0.1332,3944.0,3943.4,0.4829]
[1758853860301,0.1332,3944.0,3943.5,0.45617]
[1758853860601,0.1332,3944.0,3943.4,0.2138]
[1758853860602,0.8988,3943.5,3943.4,0.2138]
[1758853861006,0.8988,3943.5,3943.4,0.4728]
[1758853861203,0.8988,3943.5,3943.4,0.694]
[1758853861508,0.8988,3943.5,3943.4,0.4728]
[1758853861698,0.7638,3943.2,3943.1,0.2138]
[1758853861894,0.7638,3943.2,3943.1,0.694]
[1758853862100,0.5488,3943.2,3943.1,1.0202]
[1758853862799,0.5488,3943.2,3942.9,40.82536236]
[1758853862800,0.8988,3943.0,3942.9,0.02536236]
[1758853863207,0.8988,3943.0,3942.9,0.78656236]
[1758853863402,0.8988,3943.0,3942.9,0.02536236]
[1758853863598,0.8988,3943.0,3942.9,0.28436236]
[1758853864014,0.8988,3943.0,3942.9,0.49816236]
[1758853864314,0.8988,3943.0,3942.9,0.72776236]
[1758853864518,0.3243,3943.0,3942.9,1.06496236]
[1758853865709,0.2257,3943.4,3943.3,0.4395]
[1758853866018,0.5567,3943.7,3943.6,0.7767]
[1758853866313,0.7738,3943.7,3943.6,1.0357]
[1758853867008,0.331,3944.2,3943.7,1.23284]
[1758853867206,0.582,3943.8,3943.7,0.7767]
[1758853867407,0.7991,3943.8,3943.7,0.7767]
[1758853867614,0.0253,3943.8,3943.7,0.7767]
[1758853868023,0.0253,3943.8,3943.7,41.5767]
[1758853869419,0.2257,3944.8,3944.7,0.45601]
[1758853869614,0.1274,3946.0,3944.7,0.45601]
[1758853869615,0.1274,3946.0,3945.2,0.4395]
[1758853869813,0.7738,3945.4,3945.3,0.4689]
[1758853870023,1.33390927,3945.4,3945.3,0.259]
[1758853870522,1.33390927,3945.4,3945.3,0.6985]
[1758853870523,0.7738,3945.4,3945.3,0.6985]
[1758853870726,0.7738,3945.4,3945.3,1.0357]
[1758853871228,0.7738,3945.4,3945.3,0.4689]
[1758853872427,0.5567,3945.9,3945.8,0.5668]
[1758853872629,0.5567,3945.9,3945.8,1.0357]
[1758853873326,0.0253,3946.1,3945.9,0.45588]
[1758853873624,0.0253,3946.1,3946.0,0.8864]
[1758853873821,0.3531,3947.0,3946.9,0.4395]
[1758853874130,1.13185582,3947.0,3946.9,0.7767]
[1758853874327,0.1274,3947.5,3946.9,1.23246]
[1758853874526,0.1274,3947.5,3947.3,0.2099]
[1758853874527,1.00432182,3947.4,3947.3,0.2099]
[1758853874828,1.00432182,3947.4,3947.3,0.4689]
[1758853875027,1.33532182,3947.4,3947.3,0.4689]
[1758853875328,0.7738,3947.4,3947.3,0.4689]
[1758853875922,0.7738,3947.4,3947.2,0.259]
[1758853876126,0.7738,3947.4,3947.3,0.4395]
[1758853876127,0.4428,3947.4,3947.3,0.4395]
[1758853876727,0.7738,3947.4,3947.3,0.4395]
[1758853876919,0.331,3947.4,3947.3,1.23242]
[1758853877124,0.5567,3947.9,3947.8,0.7767]
[1758853877428,0.7738,3947.9,3947.8,0.259]
[1758853877928,0.7738,3947.6,3947.5,41.059]
[1758853878227,0.1394,3948.0,3947.5,41.3962]
[1758853878423,0.343,3948.0,3947.9,1.23235]
[1758853878824,0.012,3948.0,3947.9,1.23235]
[1758853879428,0.6961,3948.0,3947.9,0.4395]
[1758853879727,0.6961,3948.0,3947.5,40.8]
[1758853879728,0.9012,3948.0,3947.5,40.8]
[1758853879929,0.4428,3947.7,3947.6,0.2099]
[1758853880122,0.4428,3947.7,3947.0,0.11]
[1758853880123,0.5567,3946.9,3946.8,0.7767]
[1758853880325,0.1274,3947.5,3946.8,0.7767]
[1758853880326,0.331,3947.4,3946.8,0.5962]
[1758853880632,0.5567,3947.4,3947.3,0.4395]
[1758853880833,0.7738,3947.4,3947.3,0.6985]
[1758853881035,0.331,3947.9,3947.3,1.0357]
[1758853881226,0.7738,3947.4,3947.3,0.4689]
[1758853882037,0.7738,3947.4,3947.3,0.259]
[1758853882531,0.6841,3947.0,3946.9,40.8]
[1758853882729,0.6841,3947.0,3946.9,41.51477]
[1758853883233,0.6841,3947.0,3946.9,41.85197]
[1758853884027,0.9012,3947.5,3947.4,0.66561]
[1758853884229,0.0078,3947.7,3947.5,0.3372]
[1758853884437,0.7816,3947.7,3947.6,0.4395]
[1758853884741,0.0078,3947.7,3947.6,0.7767]
[1758853885142,0.5645,3947.7,3947.6,0.7767]
[1758853886141,0.5645,3947.7,3947.6,1.0357]
[1758853886436,0.7738,3947.7,3947.6,0.4395]
[1758853886638,0.7738,3947.7,3947.0,0.11]
[1758853886639,0.6841,3947.0,3946.9,40.8]
[1758853886834,0.6841,3947.0,3946.9,41.059]
[1758853887029,0.5567,3947.0,3946.9,41.3962]
[1758853887339,0.1274,3948.0,3947.4,0.7767]
[1758853887541,0.5702,3948.0,3947.9,0.2099]
[1758853887742,0.45567,3947.8,3947.1,0.45574]
[1758853887939,0.7738,3947.3,3947.2,0.4395]
[1758853888142,0.7738,3947.3,3947.2,0.4689]
[1758853888536,0.7738,3947.3,3947.2,0.259]
[1758853888743,0.5702,3947.0,3946.9,0.2099]
[1758853888936,0.5702,3947.0,3946.9,0.259]
[1758853889136,0.9012,3947.0,3946.9,0.259]
[1758853889439,0.9012,3947.0,3946.0,0.89537]
[1758853889440,0.2257,3946.1,3946.0,0.89537]
[1758853889743,0.7738,3946.1,3946.0,0.4395]
[1758853889946,0.7738,3946.1,3946.0,41.059]
[1758853891036,0.7738,3946.1,3946.0,40.8]
[1758853891250,0.7738,3946.1,3946.0,41.059]
[1758853892541,0.7738,3946.1,3946.0,0.4686]
[1758853892935,0.7563,3945.7,3945.6,0.2096]
[1758853893136,0.7563,3945.7,3945.6,41.2686]
[1758853893340,0.1285,3946.0,3945.9,0.2251]
[1758853893341,0.6604,3946.0,3945.9,0.2251]
[1758853893543,0.6593,3946.5,3946.4,0.4347]
[1758853893741,0.6593,3946.5,3946.4,1.0333]
[1758853894051,0.3182,3946.5,3946.4,1.0333]
[1758853894547,0.5319,3946.5,3946.4,1.0333]
[1758853895046,0.0111,3946.7,3946.6,0.7743]
[1758853895548,0.3182,3947.4,3946.7,0.66539]
[1758853895549,0.7563,3946.8,3946.7,0.66539]
[1758853895742,0.7563,3946.8,3946.7,0.4686]
[1758853895942,0.1274,3947.5,3946.7,1.0333]
[1758853896142,0.3182,3947.3,3946.7,1.0333]
[1758853896342,1.01487413,3947.2,3946.7,1.0333]
[1758853896544,0.3182,3947.0,3946.9,0.7743]
[1758853897149,0.3182,3947.3,3947.0,0.3396]
[1758853897343,1.01541271,3947.2,3946.6,0.79539]
[1758853897552,0.2137,3947.1,3947.0,0.2096]
[1758853897750,0.5319,3947.1,3947.0,0.6937]
[1758853898253,0.3182,3947.4,3947.3,0.2096]
[1758853898555,0.8784169,3947.4,3947.3,0.7743]
[1758853898952,0.5319,3947.4,3947.3,0.4347]
[1758853899250,0.99822104,3947.4,3946.8,0.45577]
[1758853899452,0.5319,3947.0,3946.9,0.6937]
[1758853899657,0.5319,3947.0,3946.9,0.4347]
[1758853899844,0.3182,3946.8,3946.3,1.23013]
[1758853900045,0.5319,3946.4,3946.3,0.5492]
[1758853900255,0.5319,3946.4,3946.3,0.4686]
[1758853900441,0.5319,3946.4,3946.3,41.2686]
[1758853900848,0.3182,3946.4,3946.3,41.6082]
[1758853901049,0.3182,3946.8,3946.3,41.6082]
[1758853901260,0.56090175,3946.7,3946.3,41.2686]
[1758853901448,1.09280175,3946.6,3946.5,0.4347]
[1758853901845,0.3182,3946.9,3946.5,0.7743]
[1758853902041,0.8794589,3946.8,3946.7,0.4347]
[1758853902249,1.0931589,3946.8,3946.7,0.6937]
[1758853903248,1.3175589,3946.8,3946.7,0.6937]
[1758853903851,0.3529,3946.5,3946.3,40.8]
[1758853904050,0.87844694,3946.4,3946.3,40.8]
[1758853904353,1.31654694,3946.4,3946.3,0.4686]
[1758853904554,1.31654694,3946.4,3946.3,0.259]
[1758853904954,0.2137,3946.1,3946.0,0.66547]
[1758853905155,0.5319,3946.1,3946.0,0.92447]
[1758853905355,0.5319,3946.1,3946.0,1.14957]
[1758853905658,0.7563,3946.1,3946.0,0.259]
[1758853905851,0.7563,3946.1,3945.3,0.3396]
[1758853905852,0.4381,3945.7,3945.6,0.45591]
[1758853906045,0.1285,3945.5,3945.0,0.3396]
[1758853906245,0.8848,3945.5,3945.4,0.66553]
[1758853906450,0.8848,3945.5,3945.4,0.92453]
[1758853906657,0.3182,3945.5,3945.4,1.48923]
[1758853906955,0.5319,3945.9,3945.8,0.89059]
[1758853907152,0.4381,3945.6,3945.5,0.66552]
[1758853907344,0.4381,3945.6,3945.5,0.92452]
[1758853907547,0.7563,3945.6,3945.5,41.72452]
[1758853908153,0.7563,3945.6,3945.5,42.06412]
[1758853908551,0.7563,3945.6,3945.5,41.72452]
[1758853908760,0.3182,3945.6,3945.5,42.06412]
[1758853909256,0.5666,3946.0,3945.9,0.2096]
[1758853909465,1.1263845,3946.0,3945.9,1.0333]
[1758853909656,1.4445845,3946.0,3945.9,1.0333]
[1758853911759,1.4445845,3946.0,3945.9,0.6937]
[1758853912254,0.5597845,3946.0,3945.9,1.0333]
[1758853912454,0.45577,3946.9,3945.9,1.0333]
[1758853912455,0.2137,3946.7,3946.6,0.2096]
[1758853912650,1.09158404,3946.7,3946.6,1.1495]
[1758853913356,1.09158404,3946.7,3946.6,1.4891]
[1758853913660,0.55968404,3946.7,3946.6,6.4891]
[1758853913861,0.8848,3947.0,3946.9,0.2096]
[1758853914064,1.44363954,3947.0,3946.9,0.4686]
[1758853914463,1.44363954,3947.0,3946.9,0.6937]
[1758853914663,1.44363954,3947.0,3946.9,1.0333]
[1758853915163,1.44363954,3947.0,3946.9,0.6937]
[1758853915363,1.44363954,3947.0,3946.9,0.259]
[1758853915566,1.58119954,3947.0,3946.6,0.45579]
[1758853915757,0.4381,3946.8,3946.7,0.259]
[1758853915957,1.31513954,3946.8,3946.7,0.259]
[1758853916270,1.31513954,3946.8,3946.7,41.059]
[1758853918263,0.87703954,3946.8,3946.7,41.3986]
[1758853918661,0.55883954,3946.8,3946.7,41.1396]
[1758853918861,0.56061539,3946.9,3946.8,0.89048]
[1758853919062,0.56061539,3946.9,3946.8,1.23008]
[1758853919266,1.09251539,3946.9,3946.8,1.23008]
[1758853919456,1.31691539,3946.9,3946.8,0.89048]
[1758853919653,1.31691539,3946.9,3946.8,0.66538]
[1758853919861,1.31691539,3946.9,3946.8,0.89048]
[1758853920364,0.1308,3946.0,3945.5,0.4233]
[1758853920564,0.1285,3947.0,3946.0,0.4203]
[1758853920868,0.1285,3947.0,3946.8,0.67198]
[1758853920869,0.98755012,3946.9,3946.8,0.67198]
[1758853921072,1.33335012,3946.9,3946.8,0.93098]
[1758853921457,1.33335012,3946.9,3946.8,0.4752]
[1758853922674,0.56115012,3946.9,3946.8,1.0002]
[1758853922973,0.4743,3947.5,3947.4,1.19691]
[1758853923177,1.45698385,3947.5,3947.4,0.6869]
[1758853923470,0.89908385,3947.5,3947.4,0.259]
[1758853923660,1.11118385,3947.5,3947.4,0.259]
[1758853924062,1.11118385,3947.5,3946.8,0.45577]
[1758853924063,0.7897,3946.9,3946.8,0.2277]
[1758853924262,0.1351,3946.5,3946.3,0.45584]
[1758853924465,0.5664,3945.9,3945.8,0.68359]
[1758853924666,0.5664,3945.9,3945.8,0.718]
[1758853924872,0.7897,3945.9,3945.8,41.0277]
[1758853925072,0.7897,3945.9,3945.4,0.45594]
[1758853925073,0.4559,3945.8,3945.4,0.45594]
[1758853925270,0.3424,3945.7,3945.4,0.45594]
[1758853925569,0.3424,3945.7,3945.1,0.313]
[1758853925570,0.3424,3945.9,3945.5,41.059]
[1758853925764,0.3424,3945.9,3945.8,0.313]
[1758853925961,0.3424,3945.9,3945.8,0.572]
[1758853926370,0.0216,3946.3,3945.9,0.76888]
[1758853926573,0.0216,3946.3,3945.9,0.313]
[1758853926768,0.3424,3945.9,3945.8,0.259]
[1758853927169,0.0216,3946.3,3945.8,0.572]
[1758853927376,0.3424,3946.1,3945.9,0.313]
[1758853927666,0.3424,3946.1,3946.0,0.45586]
[1758853927861,0.0216,3946.3,3946.2,0.76885]
[1758853928063,0.0216,3946.3,3946.2,1.02785]
[1758853928371,0.3424,3947.3,3947.0,0.45575]
[1758853928576,0.55320938,3947.2,3947.1,0.572]
[1758853928872,0.55320938,3947.2,3947.1,0.259]
[1758853928873,0.89560938,3947.2,3947.1,0.259]
[1758853930676,1.34290938,3947.2,3947.1,0.259]
[1758853931069,1.34290938,3947.2,3947.1,0.4867]
[1758853931373,0.55320938,3947.2,3947.1,1.031]
[1758853931772,0.6949,3947.5,3947.4,0.2277]
[1758853931972,1.47230276,3947.5,3947.4,0.2277]
[1758853932374,0.55410276,3947.5,3947.4,0.313]
[1758853932571,0.3424,3947.9,3947.6,0.313]
[1758853932773,0.55402225,3947.8,3947.7,0.259]
[1758853933274,0.89642225,3947.8,3947.7,0.259]
[1758853934277,0.55402225,3947.8,3947.7,0.259]
[1758853934977,0.3424,3947.7,3947.6,0.259]
[1758853935170,0.89642225,3947.7,3947.6,0.259]
[1758853935374,1.35210225,3947.7,3947.6,0.259]
[1758853936381,0.1351,3947.5,3947.4,0.259]
[1758853936780,0.4775,3947.5,3946.8,0.313]
[1758853937079,0.4775,3948.0,3947.3,4.74275068]
[1758853937283,0.89540475,3947.9,3947.8,0.76867]
[1758853937472,0.3424,3947.8,3947.3,0.45572]
[1758853937782,0.4775,3947.5,3947.4,0.259]
[1758853937973,4.87785068,3948.5,3947.4,0.259]
[1758853937974,1.81954627,3949.0,3948.9,0.76854]
[1758853938174,5.90601802,3951.1,3949.3,0.45549]
[1758853938175,2.27154539,3950.7,3949.3,0.45549]
[1758853938374,0.1309,3951.0,3949.5,0.4416]
[1758853938581,0.6109,3951.0,3949.6,0.313]
[1758853938885,0.6109,3951.0,3949.6,0.574]
[1758853938886,0.1309,3950.5,3949.6,0.574]
[1758853939178,0.1309,3950.5,3949.4,40.8]
[1758853939477,0.58631,3950.0,3949.5,0.262]
[1758853939687,0.45543,3949.9,3949.4,0.262]
[1758853939885,0.45545,3949.7,3949.4,0.262]
[1758853940181,0.3424,3949.4,3949.1,0.262]
[1758853940485,0.58637,3949.5,3949.1,0.262]
[1758853940776,0.3424,3949.4,3949.1,0.262]
[1758853941177,0.1309,3949.5,3949.1,0.262]
[1758853941373,0.3424,3949.9,3949.1,0.71752]
[1758853941673,0.45548,3949.4,3949.1,0.262]
[1758853941878,0.3424,3949.2,3949.1,0.262]
[1758853942680,0.3424,3949.9,3949.2,0.4555]
[1758853943080,0.3424,3949.9,3949.3,0.45548]
[1758853943682,0.3424,3949.9,3949.1,0.575]
[1758853943683,0.3424,3949.5,3949.1,0.575]
[1758853943879,0.3424,3949.4,3948.7,40.8]
[1758853944079,0.3424,3949.4,3948.8,0.262]
[1758853945084,0.3424,3949.4,3948.8,0.71754]
[1758853945279,0.3424,3949.3,3948.9,0.76853]
[1758853945485,0.3424,3949.4,3948.9,0.76853]
[1758853945886,0.1309,3949.5,3949.0,0.45552]
[1758853946186,0.1309,3949.5,3949.0,0.76852]
[1758853946382,0.3424,3949.4,3949.1,0.76851]
[1758853946583,0.1309,3949.5,3949.1,0.76851]
[1758853946784,0.1309,3950.0,3949.2,0.313]
[1758853946785,0.58632,3950.0,3949.2,0.313]
[1758853946977,0.3424,3949.9,3949.0,0.1286]
[1758853947182,0.3424,3949.9,3949.1,0.313]
[1758853947385,0.3424,3950.4,3949.7,0.313]
[1758853947586,0.45539,3950.3,3949.7,0.76844]
[1758853947789,0.45538,3950.3,3949.7,0.76844]
[1758853948086,0.3424,3950.2,3949.8,0.45543]
[1758853948392,0.58626,3950.5,3949.9,0.76841]
[1758853948592,0.3424,3950.3,3950.0,0.313]
[1758853948782,0.3424,3950.2,3950.1,0.313]
[1758853949289,0.45544,3949.9,3949.6,0.261]
[1758853949484,0.3424,3949.7,3949.6,0.261]
[1758853949880,0.3424,3949.8,3949.1,0.261]
[1758853950085,0.3424,3949.8,3949.2,0.313]
[1758853950385,0.4734,3950.0,3949.5,0.78136]
[1758853950584,0.4734,3950.0,3949.6,0.3259]
[1758853950585,0.1309,3950.0,3949.6,0.3259]
[1758853950785,0.3425,3949.9,3949.7,0.3259]
[1758853950985,0.3425,3949.9,3949.5,0.45546]
[1758853951181,0.3425,3949.9,3949.5,0.58156]
[1758853951383,0.45542,3950.0,3949.5,0.58156]
[1758853951582,0.79792,3950.0,3949.6,0.3259]
[1758853952189,0.3425,3950.0,3949.6,0.45545]
[1758853952387,0.3425,3950.0,3949.7,0.3259]
[1758853952585,0.3425,3949.9,3949.8,0.3259]
[1758853952796,0.79787,3950.4,3949.9,0.45542]